[Event "Early-Titled-Tuesday-Blitz-February-13-2024"]
[Site "Chess.com"]
[Date "2024.02.13"]
[Round "5"]
[White "Manukyan_Artak"]
[Black "KNVB"]
[Result "1-0"]
[WhiteElo "2543"]
[BlackElo "2866"]
[TimeControl "180+1"]
[EndTime "9:01:12 PST"]
[Termination "Manukyan_Artak won on time"]

1. e4 {[%clk 0:02:58.5]} 1... b6 {[%clk 0:02:55.9]} 2. d4 {[%clk 0:02:57.5]}
2... Bb7 {[%clk 0:02:52.8]} 3. Bd3 {[%clk 0:02:58]} 3... e6 {[%clk 0:02:52.4]}
4. Nf3 {[%clk 0:02:57.8]} 4... d5 {[%clk 0:02:52.2]} 5. e5 {[%clk 0:02:57.7]}
5... Ba6 {[%clk 0:02:51.2]} 6. Bxa6 {[%clk 0:02:53.6]} 6... Nxa6 {[%clk
0:02:52.1]} 7. c3 {[%clk 0:02:53.6]} 7... Qd7 {[%clk 0:02:51.5]} 8. O-O {[%clk
0:02:53]} 8... Ne7 {[%clk 0:02:52.2]} 9. Re1 {[%clk 0:02:48.2]} 9... c5 {[%clk
0:02:51.5]} 10. Nbd2 {[%clk 0:02:48.6]} 10... Rc8 {[%clk 0:02:35.8]} 11. Nf1
{[%clk 0:02:46.5]} 11... cxd4 {[%clk 0:02:20.3]} 12. Nxd4 {[%clk 0:02:42.5]}
12... Nc6 {[%clk 0:02:12.3]} 13. Nxc6 {[%clk 0:02:34.7]} 13... Qxc6 {[%clk
0:02:11.5]} 14. Qg4 {[%clk 0:02:29]} 14... Qc4 {[%clk 0:02:01.5]} 15. Qg3 {[%clk
0:02:20.6]} 15... Nc5 {[%clk 0:02:01.1]} 16. Be3 {[%clk 0:02:13.4]} 16... Nd3
{[%clk 0:01:34.5]} 17. Reb1 {[%clk 0:02:06.7]} 17... h5 {[%clk 0:01:33.7]} 18.
Bd4 {[%clk 0:01:59]} 18... Nc5 {[%clk 0:01:32.5]} 19. Ne3 {[%clk 0:01:47.4]}
19... Qd3 {[%clk 0:01:26.2]} 20. Rd1 {[%clk 0:01:44.9]} 20... Qg6 {[%clk
0:01:26.3]} 21. Qxg6 {[%clk 0:01:44.4]} 21... fxg6 {[%clk 0:01:27.2]} 22. a4
{[%clk 0:01:35.2]} 22... Nb3 {[%clk 0:01:14.6]} 23. Ra2 {[%clk 0:01:33.1]} 23...
Be7 {[%clk 0:01:09]} 24. Nc2 {[%clk 0:01:20.3]} 24... Kd7 {[%clk 0:00:37.9]} 25.
Be3 {[%clk 0:01:15]} 25... Bc5 {[%clk 0:00:26.5]} 26. Nd4 {[%clk 0:01:13.5]}
26... Bxd4 {[%clk 0:00:25.2]} 27. Bxd4 {[%clk 0:01:13.4]} 27... Rc4 {[%clk
0:00:18.7]} 28. Ra3 {[%clk 0:01:06.1]} 28... Nxd4 {[%clk 0:00:09.8]} 29. Rxd4
{[%clk 0:01:05]} 29... Rxd4 {[%clk 0:00:10]} 30. cxd4 {[%clk 0:01:05.9]} 30...
Rc8 {[%clk 0:00:10.5]} 31. Kf1 {[%clk 0:00:53.4]} 31... Rc1+ {[%clk 0:00:02.8]}
32. Ke2 {[%clk 0:00:52.4]} 32... Rc2+ {[%clk 0:00:03.7]} 33. Ke1 {[%clk
0:00:52.4]} 33... Rxb2 {[%clk 0:00:04.6]} 34. Rg3 {[%clk 0:00:52.3]} 34... Ke7
{[%clk 0:00:05.3]} 35. Rxg6 {[%clk 0:00:52.4]} 35... Kf7 {[%clk 0:00:05.9]} 36.
Rg5 {[%clk 0:00:50.7]} 36... Rb4 {[%clk 0:00:05.9]} 37. Rxh5 {[%clk 0:00:49.8]}
37... Rxd4 {[%clk 0:00:05.1]} 38. a5 {[%clk 0:00:50.1]} 38... b5 {[%clk
0:00:04.8]} 39. Rh8 {[%clk 0:00:47.6]} 39... Ra4 {[%clk 0:00:04.8]} 40. Rb8
{[%clk 0:00:47.8]} 40... Rxa5 {[%clk 0:00:05]} 41. h4 {[%clk 0:00:46.2]} 41...
Ra4 {[%clk 0:00:03.1]} 42. g3 {[%clk 0:00:45.8]} 42... Re4+ {[%clk 0:00:02]} 43.
Kf1 {[%clk 0:00:45.6]} 43... Rxe5 {[%clk 0:00:02.5]} 44. Rxb5 {[%clk 0:00:46]}
44... Kf6 {[%clk 0:00:01.8]} 45. Ra5 {[%clk 0:00:45.6]} 45... d4 {[%clk
0:00:01.4]} 46. Rxa7 {[%clk 0:00:45.7]} 46... g6 {[%clk 0:00:01.4]} 47. Rd7
{[%clk 0:00:45.9]} 47... Re4 {[%clk 0:00:01.8]} 48. f3 {[%clk 0:00:43.9]} 48...
Re3 {[%clk 0:00:01.9]} 49. Kf2 {[%clk 0:00:44.5]} 49... Rd3 {[%clk 0:00:01.8]}
50. g4 {[%clk 0:00:38.9]} 50... e5 {[%clk 0:00:01.9]} 51. h5 {[%clk 0:00:39]}
51... gxh5 {[%clk 0:00:02.1]} 52. gxh5 {[%clk 0:00:39.5]} 52... Kg5 {[%clk
0:00:02.7]} 53. Re7 {[%clk 0:00:36.9]} 53... Kf6 {[%clk 0:00:02.4]} 54. Rd7
{[%clk 0:00:34.8]} 54... Kg5 {[%clk 0:00:02.8]} 55. Re7 {[%clk 0:00:34.9]} 55...
Re3 {[%clk 0:00:03.2]} 56. Rh7 {[%clk 0:00:29.2]} 56... Ra3 {[%clk 0:00:03.5]}
57. h6 {[%clk 0:00:22.5]} 57... Kg6 {[%clk 0:00:03.6]} 58. Rh8 {[%clk
0:00:22.5]} 58... Ra7 {[%clk 0:00:02.4]} 59. Re8 {[%clk 0:00:21.3]} 59... Ra5
{[%clk 0:00:02.6]} 60. Re6+ {[%clk 0:00:21.3]} 60... Kh7 {[%clk 0:00:02.2]} 61.
Ke2 {[%clk 0:00:20]} 61... Rc5 {[%clk 0:00:01.5]} 62. Kd2 {[%clk 0:00:18.8]}
62... Rb5 {[%clk 0:00:01.3]} 63. Rf6 {[%clk 0:00:18.9]} 63... Rc5 {[%clk
0:00:01.1]} 64. Re6 {[%clk 0:00:19.3]} 64... Ra5 {[%clk 0:00:01.4]} 65. Rf6
{[%clk 0:00:18.3]} 65... Ra2+ {[%clk 0:00:01.6]} 66. Kd3 {[%clk 0:00:18.1]}
66... Ra3+ {[%clk 0:00:01.9]} 67. Kd2 {[%clk 0:00:18.5]} 67... Ra2+ {[%clk
0:00:02]} 68. Kd3 {[%clk 0:00:18.1]} 68... Rf2 {[%clk 0:00:02.1]} 69. Kc4 {[%clk
0:00:13.5]} 69... Re2 {[%clk 0:00:01]} 70. f4 {[%clk 0:00:12.4]} 1-0

[Event "Early-Titled-Tuesday-Blitz-February-13-2024"]
[Site "Chess.com"]
[Date "2024.02.13"]
[Round "5"]
[White "gpsji27"]
[Black "SHIVACalypso"]
[Result "0-1"]
[WhiteElo "2314"]
[BlackElo "2518"]
[TimeControl "180+1"]
[EndTime "9:01:13 PST"]
[Termination "SHIVACalypso won by resignation"]

1. d4 {[%clk 0:03:00.9]} 1... Nf6 {[%clk 0:02:58.4]} 2. Bg5 {[%clk 0:02:49.8]}
2... Ne4 {[%clk 0:02:55.1]} 3. Bf4 {[%clk 0:02:49.1]} 3... d5 {[%clk 0:02:51.8]}
4. Nd2 {[%clk 0:02:45.9]} 4... Bf5 {[%clk 0:02:45.8]} 5. Ngf3 {[%clk 0:02:41.8]}
5... e6 {[%clk 0:02:43.6]} 6. e3 {[%clk 0:02:39.2]} 6... Bd6 {[%clk 0:02:38.8]}
7. Bxd6 {[%clk 0:02:36.9]} 7... Qxd6 {[%clk 0:02:37.2]} 8. Bd3 {[%clk
0:02:36.9]} 8... Nd7 {[%clk 0:02:29.9]} 9. Qe2 {[%clk 0:02:24.2]} 9... c6 {[%clk
0:02:21.8]} 10. c4 {[%clk 0:02:20.4]} 10... Ndf6 {[%clk 0:02:21]} 11. Ne5 {[%clk
0:02:18.8]} 11... O-O {[%clk 0:02:00.2]} 12. O-O {[%clk 0:02:05.1]} 12... c5
{[%clk 0:01:34.3]} 13. cxd5 {[%clk 0:01:59.2]} 13... cxd4 {[%clk 0:01:29.7]} 14.
exd4 {[%clk 0:01:55.3]} 14... Qxd5 {[%clk 0:01:16.5]} 15. Nxe4 {[%clk
0:01:48.3]} 15... Bxe4 {[%clk 0:01:15.5]} 16. Bxe4 {[%clk 0:01:48.2]} 16... Nxe4
{[%clk 0:01:13.2]} 17. Rfd1 {[%clk 0:01:47.5]} 17... Rad8 {[%clk 0:01:08.8]} 18.
f3 {[%clk 0:01:44]} 18... Nd6 {[%clk 0:01:04.5]} 19. Rac1 {[%clk 0:01:43.2]}
19... Nf5 {[%clk 0:00:55.6]} 20. Rc4 {[%clk 0:01:10.9]} 20... f6 {[%clk
0:00:40.2]} 21. g4 {[%clk 0:00:56.3]} 21... fxe5 {[%clk 0:00:27.5]} 22. gxf5
{[%clk 0:00:56.1]} 22... Rxf5 {[%clk 0:00:26.9]} 23. Rc5 {[%clk 0:00:55.7]}
23... Qd6 {[%clk 0:00:20.3]} 24. Qe4 {[%clk 0:00:30.4]} 24... exd4 {[%clk
0:00:12.7]} 25. Rxf5 {[%clk 0:00:30]} 25... exf5 {[%clk 0:00:13.6]} 26. Qxf5
{[%clk 0:00:30.3]} 26... d3 {[%clk 0:00:13.8]} 27. Qe4 {[%clk 0:00:30.1]} 27...
Qd4+ {[%clk 0:00:12.7]} 28. Qxd4 {[%clk 0:00:30.2]} 28... Rxd4 {[%clk
0:00:13.6]} 29. Kf2 {[%clk 0:00:31]} 29... Rc4 {[%clk 0:00:11.7]} 30. Rxd3
{[%clk 0:00:26.4]} 30... Rc2+ {[%clk 0:00:11.6]} 31. Kg3 {[%clk 0:00:27]} 31...
Rxb2 {[%clk 0:00:12.1]} 32. a3 {[%clk 0:00:26.6]} 32... h6 {[%clk 0:00:11.9]}
33. Rd7 {[%clk 0:00:25]} 33... a5 {[%clk 0:00:11.8]} 34. Rd8+ {[%clk 0:00:23.5]}
34... Kf7 {[%clk 0:00:11.1]} 35. Ra8 {[%clk 0:00:24.4]} 35... b6 {[%clk
0:00:10.2]} 36. h4 {[%clk 0:00:22.2]} 36... Rb3 {[%clk 0:00:09.2]} 37. Rb8
{[%clk 0:00:22.8]} 37... Kf6 {[%clk 0:00:09.1]} 38. Rb7 {[%clk 0:00:19.9]} 38...
a4 {[%clk 0:00:04.7]} 39. Kg2 {[%clk 0:00:12.5]} 39... b5 {[%clk 0:00:04.8]} 40.
Kg3 {[%clk 0:00:11.5]} 40... Rxa3 {[%clk 0:00:04.2]} 41. Rxb5 {[%clk 0:00:11.7]}
41... Rb3 {[%clk 0:00:04.8]} 42. Ra5 {[%clk 0:00:11.8]} 42... a3 {[%clk
0:00:05.4]} 43. Kg2 {[%clk 0:00:11]} 43... g6 {[%clk 0:00:04.5]} 44. Kg3 {[%clk
0:00:11.2]} 44... h5 {[%clk 0:00:05.1]} 45. Kg2 {[%clk 0:00:11.6]} 45... Rb2+
{[%clk 0:00:05.1]} 46. Kg3 {[%clk 0:00:12.4]} 46... a2 {[%clk 0:00:06]} 47. Ra6+
{[%clk 0:00:11.8]} 47... Kf5 {[%clk 0:00:06]} 48. Ra5+ {[%clk 0:00:12.1]} 48...
Ke6 {[%clk 0:00:06.3]} 49. Kh3 {[%clk 0:00:10.9]} 49... Kd6 {[%clk 0:00:06.2]}
50. Kg3 {[%clk 0:00:11]} 50... Kc6 {[%clk 0:00:06.7]} 51. Kh3 {[%clk 0:00:10.6]}
51... Kb6 {[%clk 0:00:06.8]} 52. Ra8 {[%clk 0:00:11]} 52... Kc5 {[%clk
0:00:07.1]} 53. Kg3 {[%clk 0:00:10.5]} 53... Kc4 {[%clk 0:00:07.2]} 54. Kh3
{[%clk 0:00:10.7]} 54... Kb3 {[%clk 0:00:07.4]} 55. Kg3 {[%clk 0:00:08.6]} 55...
Kc2 {[%clk 0:00:08]} 56. Rc8+ {[%clk 0:00:08.8]} 56... Kb1 {[%clk 0:00:07.3]}
57. Ra8 {[%clk 0:00:07.9]} 57... a1=Q {[%clk 0:00:06.8]} 58. Rxa1+ {[%clk
0:00:07.3]} 58... Kxa1 {[%clk 0:00:07.5]} 59. Kf4 {[%clk 0:00:08.2]} 59... Rb5
{[%clk 0:00:07.6]} 60. Ke4 {[%clk 0:00:08]} 60... Rf5 {[%clk 0:00:08.5]} 61. f4
{[%clk 0:00:07.6]} 61... Kb2 {[%clk 0:00:09]} 0-1

[Event "Early-Titled-Tuesday-Blitz-February-13-2024"]
[Site "Chess.com"]
[Date "2024.02.13"]
[Round "5"]
[White "tantaan"]
[Black "Cosi43"]
[Result "1/2-1/2"]
[WhiteElo "2501"]
[BlackElo "2629"]
[TimeControl "180+1"]
[EndTime "9:01:14 PST"]
[Termination "Game drawn by repetition"]

1. e4 {[%clk 0:03:00.9]} 1... d5 {[%clk 0:02:58.9]} 2. exd5 {[%clk 0:02:58.7]}
2... Qxd5 {[%clk 0:02:59.8]} 3. Nf3 {[%clk 0:02:58.1]} 3... Nf6 {[%clk
0:02:59.5]} 4. Be2 {[%clk 0:02:45.8]} 4... Bf5 {[%clk 0:02:57]} 5. d4 {[%clk
0:02:42]} 5... e6 {[%clk 0:02:56.4]} 6. c4 {[%clk 0:02:42.2]} 6... Qd8 {[%clk
0:02:55.1]} 7. O-O {[%clk 0:02:42.6]} 7... Be7 {[%clk 0:02:51.6]} 8. Nc3 {[%clk
0:02:42.9]} 8... O-O {[%clk 0:02:51.1]} 9. Nh4 {[%clk 0:02:43]} 9... Bg6 {[%clk
0:02:46]} 10. Nxg6 {[%clk 0:02:42.6]} 10... hxg6 {[%clk 0:02:46.9]} 11. Be3
{[%clk 0:02:37.1]} 11... Nbd7 {[%clk 0:02:46.5]} 12. Qd2 {[%clk 0:02:36.7]}
12... c6 {[%clk 0:02:43.3]} 13. Rad1 {[%clk 0:02:35.3]} 13... Qc7 {[%clk
0:02:38]} 14. h3 {[%clk 0:02:35.4]} 14... Rfd8 {[%clk 0:02:33.9]} 15. Qc1 {[%clk
0:02:24.3]} 15... Rac8 {[%clk 0:02:31.8]} 16. Rfe1 {[%clk 0:02:24]} 16... Bb4
{[%clk 0:02:24]} 17. a3 {[%clk 0:02:21.6]} 17... Be7 {[%clk 0:02:17.1]} 18. c5
{[%clk 0:02:11]} 18... e5 {[%clk 0:02:02.6]} 19. b4 {[%clk 0:02:10.8]} 19...
exd4 {[%clk 0:01:39]} 20. Rxd4 {[%clk 0:01:57.3]} 20... Ne5 {[%clk 0:01:28.1]}
21. Rxd8+ {[%clk 0:01:55.1]} 21... Qxd8 {[%clk 0:01:17.2]} 22. Bf4 {[%clk
0:01:52.5]} 22... Ned7 {[%clk 0:01:07.8]} 23. Bc4 {[%clk 0:01:50.5]} 23... b6
{[%clk 0:00:55.2]} 24. cxb6 {[%clk 0:01:28.7]} 24... Nxb6 {[%clk 0:00:54.1]} 25.
Bb3 {[%clk 0:01:28.8]} 25... Nbd5 {[%clk 0:00:52]} 26. Be5 {[%clk 0:01:23.3]}
26... Bd6 {[%clk 0:00:47.3]} 27. Bxd6 {[%clk 0:01:19.8]} 27... Qxd6 {[%clk
0:00:47]} 28. Rd1 {[%clk 0:01:19.2]} 28... Qe5 {[%clk 0:00:44]} 29. Na4 {[%clk
0:01:16.8]} 29... Nf4 {[%clk 0:00:39.7]} 30. Qe3 {[%clk 0:01:04]} 30... Qg5
{[%clk 0:00:38.8]} 31. Qf3 {[%clk 0:00:53.4]} 31... Re8 {[%clk 0:00:38.4]} 32.
Kh2 {[%clk 0:00:33.1]} 32... Qe5 {[%clk 0:00:21]} 33. g3 {[%clk 0:00:29.3]}
33... N4d5 {[%clk 0:00:21.3]} 34. Nc5 {[%clk 0:00:27]} 34... Qe2 {[%clk
0:00:19.5]} 35. Qxe2 {[%clk 0:00:26.1]} 35... Rxe2 {[%clk 0:00:20.4]} 36. Kg1
{[%clk 0:00:23.7]} 36... Rb2 {[%clk 0:00:18.3]} 37. Rd3 {[%clk 0:00:23.4]} 37...
Rb1+ {[%clk 0:00:15.9]} 38. Kg2 {[%clk 0:00:22.7]} 38... Ra1 {[%clk 0:00:16.7]}
39. Bc4 {[%clk 0:00:20.6]} 39... Nb6 {[%clk 0:00:14.5]} 40. Ba6 {[%clk
0:00:18.7]} 40... g5 {[%clk 0:00:06.9]} 41. Bb7 {[%clk 0:00:18.9]} 41... Nc4
{[%clk 0:00:07.4]} 42. a4 {[%clk 0:00:16.5]} 42... Rb1 {[%clk 0:00:08.1]} 43.
Rb3 {[%clk 0:00:15.9]} 43... Rxb3 {[%clk 0:00:07.8]} 44. Nxb3 {[%clk 0:00:16.8]}
44... Ne5 {[%clk 0:00:07.1]} 45. Nd4 {[%clk 0:00:16.2]} 45... Nd5 {[%clk
0:00:06.9]} 46. b5 {[%clk 0:00:14.5]} 46... Nc3 {[%clk 0:00:06.6]} 47. bxc6
{[%clk 0:00:13.8]} 47... Nxa4 {[%clk 0:00:05.6]} 48. c7 {[%clk 0:00:14.1]} 48...
Nb6 {[%clk 0:00:06.4]} 49. Nb5 {[%clk 0:00:13.9]} 49... a5 {[%clk 0:00:05.5]}
50. Nd6 {[%clk 0:00:13.6]} 50... a4 {[%clk 0:00:04.9]} 51. c8=Q+ {[%clk
0:00:13.9]} 51... Nxc8 {[%clk 0:00:05.2]} 52. Nxc8 {[%clk 0:00:14.8]} 52... a3
{[%clk 0:00:06.1]} 53. Bd5 {[%clk 0:00:15.1]} 53... Nd3 {[%clk 0:00:05.7]} 54.
Nb6 {[%clk 0:00:14.6]} 54... Nb4 {[%clk 0:00:06.3]} 55. Bb3 {[%clk 0:00:12.4]}
55... a2 {[%clk 0:00:06.9]} 56. Bxa2 {[%clk 0:00:12.9]} 56... Nxa2 {[%clk
0:00:07.8]} 57. Kf3 {[%clk 0:00:13.5]} 57... f6 {[%clk 0:00:08.4]} 58. Kg4
{[%clk 0:00:13.1]} 58... Nc3 {[%clk 0:00:09.1]} 59. h4 {[%clk 0:00:13.3]} 59...
gxh4 {[%clk 0:00:08.8]} 60. Kxh4 {[%clk 0:00:14.2]} 60... Ne4 {[%clk 0:00:09.4]}
61. f3 {[%clk 0:00:14]} 61... Nd6 {[%clk 0:00:09.6]} 62. Nd5 {[%clk 0:00:13.9]}
62... Kf7 {[%clk 0:00:09.6]} 63. Kg4 {[%clk 0:00:14.4]} 63... g5 {[%clk
0:00:09.7]} 64. f4 {[%clk 0:00:14.8]} 64... gxf4 {[%clk 0:00:10.1]} 65. gxf4
{[%clk 0:00:14.9]} 65... Kg6 {[%clk 0:00:09.9]} 66. Ne3 {[%clk 0:00:14.5]} 66...
f5+ {[%clk 0:00:09.9]} 67. Nxf5 {[%clk 0:00:14.6]} 67... Nxf5 {[%clk 0:00:09.7]}
68. Kf3 {[%clk 0:00:15.5]} 68... Nd4+ {[%clk 0:00:09.8]} 69. Ke4 {[%clk
0:00:15.6]} 69... Nf5 {[%clk 0:00:10.2]} 70. Ke5 {[%clk 0:00:16]} 70... Ng3
{[%clk 0:00:10.3]} 71. Ke6 {[%clk 0:00:16.5]} 71... Nf5 {[%clk 0:00:11.2]} 72.
Ke5 {[%clk 0:00:16.9]} 72... Ng3 {[%clk 0:00:11.7]} 73. Ke6 {[%clk 0:00:17.8]}
73... Nf5 {[%clk 0:00:12.3]} 74. Ke5 {[%clk 0:00:18.7]} 1/2-1/2

[Event "Early-Titled-Tuesday-Blitz-February-13-2024"]
[Site "Chess.com"]
[Date "2024.02.13"]
[Round "5"]
[White "SpeedofLight0"]
[Black "AryanTari"]
[Result "1/2-1/2"]
[WhiteElo "3065"]
[BlackElo "2936"]
[TimeControl "180+1"]
[EndTime "9:01:15 PST"]
[Termination "Game drawn - insufficient material"]

1. d4 {[%clk 0:02:22.4]} 1... d5 {[%clk 0:02:57.4]} 2. Nc3 {[%clk 0:02:22.2]}
2... Nf6 {[%clk 0:02:53.9]} 3. Bf4 {[%clk 0:02:21.1]} 3... g6 {[%clk 0:02:53.8]}
4. e3 {[%clk 0:02:20.5]} 4... Bg7 {[%clk 0:02:54.1]} 5. h4 {[%clk 0:02:20.2]}
5... h5 {[%clk 0:02:54.7]} 6. Nf3 {[%clk 0:02:18.9]} 6... O-O {[%clk 0:02:54.8]}
7. Ne5 {[%clk 0:02:17.8]} 7... c5 {[%clk 0:02:55]} 8. f3 {[%clk 0:02:08.8]} 8...
cxd4 {[%clk 0:02:45.3]} 9. exd4 {[%clk 0:02:09.7]} 9... Nc6 {[%clk 0:02:45.5]}
10. Qd2 {[%clk 0:02:09.4]} 10... Bf5 {[%clk 0:02:35.6]} 11. O-O-O {[%clk
0:01:56.5]} 11... Rc8 {[%clk 0:02:29.2]} 12. Kb1 {[%clk 0:01:55.2]} 12... Qa5
{[%clk 0:02:00.6]} 13. a3 {[%clk 0:01:48.7]} 13... Nxe5 {[%clk 0:01:52.6]} 14.
Bxe5 {[%clk 0:01:35.9]} 14... e6 {[%clk 0:01:45.2]} 15. g4 {[%clk 0:01:26.8]}
15... hxg4 {[%clk 0:01:44.5]} 16. h5 {[%clk 0:01:27.7]} 16... Rxc3 {[%clk
0:01:37.5]} 17. Qxc3 {[%clk 0:00:53.6]} 17... Qxc3 {[%clk 0:01:36.8]} 18. bxc3
{[%clk 0:00:54.5]} 18... Nxh5 {[%clk 0:01:36.5]} 19. fxg4 {[%clk 0:00:49.1]}
19... Bxg4 {[%clk 0:01:35.2]} 20. Re1 {[%clk 0:00:49.7]} 20... Bxe5 {[%clk
0:01:27.8]} 21. dxe5 {[%clk 0:00:44.6]} 21... Rc8 {[%clk 0:01:26.8]} 22. Rh4
{[%clk 0:00:39.4]} 22... Bf5 {[%clk 0:01:20.7]} 23. Kb2 {[%clk 0:00:39.4]} 23...
Ng3 {[%clk 0:01:05.1]} 24. Bd3 {[%clk 0:00:39]} 24... Kg7 {[%clk 0:01:03.7]} 25.
Rg1 {[%clk 0:00:32.5]} 25... Ne4 {[%clk 0:00:59.7]} 26. Rgh1 {[%clk 0:00:32.8]}
26... g5 {[%clk 0:00:57.5]} 27. Rh5 {[%clk 0:00:31.2]} 27... Bg6 {[%clk
0:00:51.5]} 28. R5h2 {[%clk 0:00:27.9]} 28... g4 {[%clk 0:00:45.4]} 29. Rg1
{[%clk 0:00:25.4]} 29... Bf5 {[%clk 0:00:41.6]} 30. c4 {[%clk 0:00:17.8]} 30...
dxc4 {[%clk 0:00:30.1]} 31. Bxe4 {[%clk 0:00:15.2]} 31... c3+ {[%clk 0:00:29.4]}
32. Kb3 {[%clk 0:00:13.8]} 32... Bxe4 {[%clk 0:00:29.7]} 33. Rxg4+ {[%clk
0:00:14.5]} 33... Bg6 {[%clk 0:00:30.4]} 34. Rh3 {[%clk 0:00:13]} 34... Rc5
{[%clk 0:00:30.1]} 35. Re3 {[%clk 0:00:12.4]} 35... b5 {[%clk 0:00:29.3]} 36.
Rd4 {[%clk 0:00:10.1]} 36... a5 {[%clk 0:00:28.7]} 37. Rh4 {[%clk 0:00:05.7]}
37... Rd5 {[%clk 0:00:23.2]} 38. Rh2 {[%clk 0:00:05]} 38... Rc5 {[%clk
0:00:20.1]} 39. Rhe2 {[%clk 0:00:04.7]} 39... Bh5 {[%clk 0:00:16.5]} 40. Rg2+
{[%clk 0:00:04]} 40... Bg6 {[%clk 0:00:15.7]} 41. Rge2 {[%clk 0:00:04.4]} 41...
Bh5 {[%clk 0:00:14.7]} 42. Re1 {[%clk 0:00:05]} 42... Rd5 {[%clk 0:00:08.2]} 43.
Rxc3 {[%clk 0:00:04.2]} 43... Bg6 {[%clk 0:00:08.8]} 44. Rc7 {[%clk 0:00:03.3]}
44... Kh6 {[%clk 0:00:08.7]} 45. c3 {[%clk 0:00:02.5]} 45... Kg5 {[%clk
0:00:08.9]} 46. a4 {[%clk 0:00:02.8]} 46... bxa4+ {[%clk 0:00:08]} 47. Kxa4
{[%clk 0:00:03.7]} 47... Kf4 {[%clk 0:00:06.3]} 48. Rc4+ {[%clk 0:00:03.7]}
48... Kf3 {[%clk 0:00:06.2]} 49. Rd4 {[%clk 0:00:04.3]} 49... Rc5 {[%clk
0:00:06.4]} 50. c4 {[%clk 0:00:04.6]} 50... Kf2 {[%clk 0:00:06.2]} 51. Red1
{[%clk 0:00:03.3]} 51... Rxe5 {[%clk 0:00:06.6]} 52. Rd7 {[%clk 0:00:02.2]}
52... Bc2+ {[%clk 0:00:06.2]} 53. Ka3 {[%clk 0:00:02.1]} 53... Bxd1 {[%clk
0:00:06.8]} 54. Rxd1 {[%clk 0:00:02.4]} 54... f5 {[%clk 0:00:06.9]} 55. Rc1
{[%clk 0:00:02]} 55... Rc5 {[%clk 0:00:06.5]} 56. Kb3 {[%clk 0:00:02]} 56... f4
{[%clk 0:00:06.9]} 57. Kc3 {[%clk 0:00:02.9]} 57... a4 {[%clk 0:00:05.4]} 58.
Kd4 {[%clk 0:00:03.3]} 58... Rc8 {[%clk 0:00:04.9]} 59. Ke4 {[%clk 0:00:03.4]}
59... e5 {[%clk 0:00:03.2]} 60. c5 {[%clk 0:00:03.3]} 60... Ke2 {[%clk
0:00:03.1]} 61. c6 {[%clk 0:00:02.9]} 61... Kd2 {[%clk 0:00:03.6]} 62. Rc5
{[%clk 0:00:02.6]} 62... a3 {[%clk 0:00:04.2]} 63. Kxe5 {[%clk 0:00:02.3]} 63...
a2 {[%clk 0:00:02.8]} 64. Ra5 {[%clk 0:00:02.6]} 64... f3 {[%clk 0:00:03.5]} 65.
Rxa2+ {[%clk 0:00:02.8]} 65... Ke1 {[%clk 0:00:04.1]} 66. Kd6 {[%clk 0:00:01.8]}
66... f2 {[%clk 0:00:03.9]} 67. Ra1+ {[%clk 0:00:02.4]} 67... Ke2 {[%clk
0:00:04.1]} 68. Kd7 {[%clk 0:00:03.1]} 68... Rf8 {[%clk 0:00:03.3]} 69. c7
{[%clk 0:00:03.6]} 69... Rf7+ {[%clk 0:00:03.2]} 70. Kd8 {[%clk 0:00:03.7]}
70... Rxc7 {[%clk 0:00:04.1]} 71. Kxc7 {[%clk 0:00:04.6]} 71... f1=Q {[%clk
0:00:04.6]} 72. Rxf1 {[%clk 0:00:05.1]} 72... Kxf1 {[%clk 0:00:05.3]} 1/2-1/2